Cogmind - Beta 16.1 @@@ ROGUE MODE // 2026.04.10 @ 22:54:19 Player: Lyft Result: Destroyed by Y-54 Guardian with Gatling Laser Performance ------------- Evolutions (4) 2000 Regions Visited (11) 2200 Robots Destroyed (203) 1015 Value Destroyed (6795) 6795 Prototype IDs (57) 1140 Alien Tech Used (0) 0 Bonus (3302) 3302 TOTAL SCORE: 16452 Bonus ------- High Alert Combat Kills 305 Follower Combat Kills 1828 Network Hubs Disabled 200 Aligned with FarCom 300 Built Enhanced Grunts 300 Met R17 at Cetus 500 Friendly Fire -131 Cogmind --------- Core Integrity 0/850 Matter 300/300 Energy 600/600 System Corruption 1% Temperature Cool (6) Movement Core (2050) Ox40 Location -6/Hub_04(d) Parts ------- > --- POWER (2) -------- Quantum Reactor Quantum Reactor > --- PROPULSION (4) --- (None) > --- UTILITY (6) ------ Huge Storage Unit IFF Parser Advanced Targeting Computer > --- WEAPON (3) ------- (None) > --- INVENTORY (25) --- Fusion Compressor Antimatter Reactor Improved Treads Improved Cooling System Advanced Energy Well (500) Superbattery (1500) Matter Compressor (250) Machine Analyzer Advanced Terrain Scanner Centrium Medium Armor Plating Centrium Medium Armor Plating Improved Hacking Suite Improved Hacking Suite Improved System Shield Wave Gun Advanced Variable Charge Gun Advanced Variable Charge Gun Advanced Variable Charge Gun Advanced Variable Charge Gun Antimatter Cannon Missile Launcher Advanced Datajack Welding Torch Makeshift Hammer Peak State ------------ > --- POWER ------------ Quantum Reactor Quantum Reactor > --- PROPULSION ------- Improved Treads Centrium Heavy Treads Compact Wheel > --- UTILITY ---------- Huge Storage Unit Advanced Energy Well Advanced Targeting Computer Centrium Medium Armor Plating Experimental Thermal Shield Improved Hacking Suite > --- WEAPON ----------- Neutron Cannon KE Penetrator Advanced KE Penetrator > --- INVENTORY -------- Improved Deuterium Engine Antimatter Reactor Improved Treads Compact Wheel Advanced Heat Sink Improved Cooling System Improved Cooling System Superbattery Matter Compressor Machine Analyzer Advanced Terrain Scanner Centrium Medium Armor Plating Centrium Medium Armor Plating Improved Hacking Suite Improved Hacking Suite Improved System Shield Wave Gun Advanced Variable Charge Gun Advanced Variable Charge Gun Advanced Variable Charge Gun Advanced Variable Charge Gun Antimatter Cannon Missile Launcher Advanced Datajack Makeshift Hammer [Rating: 109] Favorites ----------- Power Quantum Reactor Engine Cooled Deuterium Engine Power Core Nuclear Core Reactor Quantum Reactor Propulsion Light Treads Treads Light Treads Leg Carbon-fiber Leg Wheel Compact Wheel Hover Unit Improved Airjet Flight Unit Surge Thruster Utility Improved Cooling System Device Improved Cooling System Storage Huge Storage Unit Processor Advanced Targeting Computer Hackware Improved Hacking Suite Protection Hardened Heavy Armor Plating Weapon Cooled Pulse Rifle Energy Gun Cooled Pulse Rifle Energy Cannon Beam Cannon Ballistic Gun Advanced KE Penetrator Ballistic Cannon Light Cannon Launcher Proton Missile Launcher Special Weapon Mining Laser Impact Weapon Makeshift Hammer Special Melee Weapon Improved Datajack Build | -11 -10 -10 -10 -9 -8 -7 -6 -6 -6 -6 -6 ------- Run | Yrd Mat Min Exi Min Mat Fac Fac Ext Cet Arc Hub Slots Evolved 8 | . . . . . 4 2 2 . . . . Power 1 | . . . . . . . 1 . . . . Propulsion 2 | . . . . . 1 1 . . . . . Utility 4 | . . . . . 3 1 . . . . . Weapon 1 | . . . . . . . 1 . . . . Parts Attached 161 | 4 12 8 1 3 22 27 18 35 6 20 5 Power 23 | 1 2 2 . . 1 2 2 9 3 1 . Engine 14 | 1 1 2 . . . 2 1 5 2 . . Core 7 | . 1 . . . 1 . 1 4 . . . Reactor 2 | . . . . . . . . . 1 1 . Propulsion 40 | 2 1 3 . 1 6 9 7 6 1 3 1 Treads 25 | 1 . 2 . . 5 9 5 . . 3 . Leg 1 | . . . . . . . . . 1 . . Wheel 11 | 1 1 1 . 1 . . . 6 . . 1 Hover 2 | . . . . . . . 2 . . . . Flight 1 | . . . . . 1 . . . . . . Utility 52 | 1 3 . 1 1 8 10 8 9 2 6 3 Device 31 | 1 2 . . 1 6 7 5 3 . 4 2 Storage 7 | . 1 . 1 . . 1 . 3 . 1 . Processor 2 | . . . . . . 1 . 1 . . . Hackware 3 | . . . . . . . . 2 1 . . Protection 9 | . . . . . 2 1 3 . 1 1 1 Artifact . | . . . . . . . . . . . . Weapon 46 | . 6 3 . 1 7 6 1 11 . 10 1 Energy Gun 20 | . . . . . 4 3 1 7 . 5 . Energy Cannon 8 | . 2 . . 1 1 2 . 1 . 1 . Ballistic Gun 5 | . 1 . . . 2 . . . . 2 . Ballistic Cannon 4 | . 1 . . . . . . 3 . . . Launcher 4 | . 1 1 . . . 1 . . . . 1 Special Weapon 2 | . 1 . . . . . . . . 1 . Impact Weapon 1 | . . 1 . . . . . . . . . Slashing Weapon . | . . . . . . . . . . . . Piercing Weapon . | . . . . . . . . . . . . Special Melee Weapon 2 | . . 1 . . . . . . . 1 . Unidentified Prototypes 18 | . . . . . 3 4 2 2 1 5 1 Corrupted Parts 7 | . . . . . . . . . . 7 . System Corruption 19 | . . . . . . . . . . 19 . Parts Lost 48 | . . 4 . . 1 1 12 16 3 . 11 Power 8 | . . 1 . . . . 1 5 1 . . Propulsion 11 | . . 1 . . 1 . 3 2 . . 4 Utility 14 | . . . . . . 1 7 2 . . 4 Weapon 15 | . . 2 . . . . 1 7 2 . 3 Highest Loss Streak 6 | . . 3 . . 1 1 5 6 2 . 4 To Critical Strikes . | . . . . . . . . . . . . Average Backups 18 | 4 8 9 9 13 14 20 21 20 24 20 24 Power 1 | 1 1 1 2 1 1 . 1 2 2 1 1 Propulsion 2 | 2 2 1 . . . 3 5 3 2 1 1 Utility 8 | . 2 4 5 8 6 9 10 9 12 10 11 Weapon 4 | 1 3 1 1 2 5 5 3 4 5 6 8 Tool/Special . | . . . . . . . . . . . . Unused Backups 51 | . 6 1 . 3 11 5 1 1 6 4 13 Power 6 | . . 1 . 1 1 . . . 1 . 2 Propulsion 3 | . . . . . . . 1 . 2 . . Utility 32 | . 3 . . 2 7 4 . . 3 3 10 Weapon 9 | . 3 . . . 3 1 . 1 . 1 . Tool/Special 1 | . . . . . . . . . . . 1 Average Slot Usage (%) 93 | . 99 98 100 99 98 94 97 87 90 88 81 Engine 6 | . 4 13 14 14 2 5 5 9 11 . . Core 2 | . 9 . . . 6 1 6 2 . . . Reactor 2 | . . . . . . . . . . 12 13 Treads 18 | . 14 21 28 23 19 29 25 . . 5 9 Wheel 5 | . 14 5 . 4 7 . . 15 19 9 6 Device 15 | . 14 14 14 14 25 21 15 8 . 7 14 Storage 9 | . 14 14 14 14 9 7 6 10 13 15 7 Processor 4 | . . . . . . 5 6 9 13 6 6 Hackware 2 | . . . . . . . . 9 10 6 2 Protection 3 | . . . . . 9 5 8 . 1 1 3 Energy Gun 8 | . . . . . 4 14 14 13 4 12 . Energy Cannon 3 | . 6 11 . 13 5 . 4 1 6 1 2 Ballistic Gun 3 | . 13 5 . . 5 . . . . 3 12 Ballistic Cannon 2 | . 2 8 14 14 1 . . 3 6 . . Peak Build Rating 109 | 7 12 13 14 14 36 59 72 67 75 107 109 Average Rating 52 | 6 8 10 13 12 30 51 69 62 65 93 94 On Entrance 38 | 6 7 10 13 14 13 36 59 62 64 75 103 Avg Prop Armor Cover (%) 13 | 13 11 11 . 11 15 3 . . . 11 16 Naked Turns . | . . . . . . . . . . . . Heaviest Build 152 | 12 21 22 30 32 54 123 131 128 138 152 152 Greatest Support 106 | 16 16 40 40 40 60 96 106 60 60 103 32 Greatest Overweight (x) 42 | . 1 1 . 1 3 2 2 4 2 9 42 Average Overweight (x) 1 | . . . . . 2 1 1 1 1 4 8 Largest Inventory Capacity 25 | 8 10 10 15 15 15 25 25 25 25 25 25 Average Capacity 21 | 8 9 10 13 15 15 24 25 25 25 25 25 Most Carried 25 | 8 10 10 11 15 15 25 25 25 25 25 25 Average Carried 19 | 4 8 9 9 13 14 23 24 20 24 21 24 Final Capacity 25 | 8 10 10 15 15 15 25 25 25 25 25 25 Final Carried 25 | 6 10 9 11 14 15 25 22 25 25 24 24 Class Distribution -------------------- 29% | Mutant 28% | Scavenger-Mutant 13% | Scavenger-Tank 6% | Scavenger-Skirmisher 5% | Scavenger-Gunner 4% | Gunner 3% | Skirmisher Dominant Class ---------------- Mutant | -10/Materials Mutant | -10/Mines Mutant | -10/Exiles Mutant | -9/Mines Scavenger-Mutant | -8/Materials Scavenger-Mutant | -7/Factory Scavenger-Tank | -6/Factory Scavenger-Gunner | -6/Extension Scavenger-Gunner | -6/Cetus Scavenger-Tank | -6/Archives Scavenger-Tank | -6/Hub_04(d) Resources | -11 -10 -10 -10 -9 -8 -7 -6 -6 -6 -6 -6 ----------- Run | Yrd Mat Min Exi Min Mat Fac Fac Ext Cet Arc Hub Matter Collected 4946 | 252 320 322 98 268 593 422 341 850 440 523 517 Remotely . | . . . . . . . . . . . . Salvage Created 9145 | 147 516 240 . 128 881 1979 2061 1733 162 265 1033 Parts 439 | 9 33 14 . 5 54 88 76 60 8 27 65 Haulers Intercepted 10 | . 2 . . . 4 3 1 . . . . Recyclers Shooed 6 | 1 . . . . . 1 3 1 . . . Parts Field Recycled . | . . . . . . . . . . . . Retrieved Matter . | . . . . . . . . . . . . Parts Self-Destructed . | . . . . . . . . . . . . Prevented . | . . . . . . . . . . . . Parts Restored . | . . . . . . . . . . . . Kills | -11 -10 -10 -10 -9 -8 -7 -6 -6 -6 -6 -6 ------- Run | Yrd Mat Min Exi Min Mat Fac Fac Ext Cet Arc Hub Combat Hostiles Destroyed 147 | . 14 27 . . 14 27 24 22 3 . 16 Guns 53 | . . 1 . . 2 21 7 10 . . 12 Cannons 46 | . 8 6 . . 12 1 7 9 3 . . AOE 42 | . 6 20 . . . 3 7 3 . . 3 Classes Destroyed 16 | 2 5 1 . . 3 2 1 1 . . 1 Worker 9 | . . . . . . 2 2 1 . . 4 Builder 5 | . . . . . 1 . 1 2 . . 1 Tunneler 5 | 4 . . . . . 1 . . . . . Hauler 10 | . 2 . . . 4 3 1 . . . . Recycler 19 | 1 . . . 2 . 7 5 4 . . . Operator 14 | . 1 . . . 2 . . . . 9 2 Watcher 13 | . 2 . . . 2 1 6 . 1 . 1 Swarmer 35 | . 6 3 . . 3 4 8 8 . . 3 Grunt 51 | . 8 4 . . 4 13 6 6 2 . 8 Duelist 1 | . . . . . . . . . . . 1 Sentry 14 | . . . . . 4 2 1 6 . . 1 Hunter 7 | . . . . . 3 1 3 . . . . Programmer 14 | . . . . . . 7 5 . . . 2 Heavy 2 | . . . . . . . 1 . . . 1 Behemoth 2 | . . . . . . . . 2 . . . Cetus Guard 1 | . . . . . . . . . 1 . . Assembled 20 | . . 20 . . . . . . . . . Guerrilla 1 | . . . . . . . . 1 . . . Best Kill Streak 20 | 3 3 20 . 1 3 6 7 7 2 2 5 Combat Bots Only 20 | . 3 20 . . 3 4 4 4 2 . 4 Max Kills in Single Turn 7 | 1 3 7 . 1 2 5 3 2 2 1 3 Gunslinging 1 | . . . . . . . . 1 . . . Exploded 7 | . 3 7 . . . 3 3 2 . . 1 Melee . | . . . . . . . . . . . . Uniques/NPCs Destroyed . | . . . . . . . . . . . . Combat | -11 -10 -10 -10 -9 -8 -7 -6 -6 -6 -6 -6 -------- Run | Yrd Mat Min Exi Min Mat Fac Fac Ext Cet Arc Hub Hostile Shots Fired 1074 | . 42 50 . . 73 221 266 265 38 6 113 Missed 354 | . 13 10 . . 18 62 96 99 16 3 37 Hits 720 | . 29 40 . . 55 159 170 166 22 3 76 Melee 6 | . . 4 . . . . . . . . 2 Projectile 714 | . 29 36 . . 55 159 170 166 22 3 74 Critical Strikes 26 | . 1 1 . . 1 10 3 . 5 . 5 Part Disruptions 1 | . . . . . . 1 . . . . . Damage Taken 11171 | 35 340 607 . . 609 2179 3162 2287 497 69 1386 Core 1327 | . 57 91 . . 89 231 329 290 83 24 133 Absorbed by Shields 337 | . . . . . 144 64 . . 129 . . Redirected to Shielding 56 | . . . . . . . . . . . 56 Ignored by Resistances 408 | . . . . . 99 35 . . . . 274 Regen/Repaired (Parts) 48 | . . . . . 48 . . . . . . Core Remaining (%) 72 | 100 . . . 40 83 67 . . . . . Volleys Fired 570 | 12 51 21 . 7 66 115 88 67 17 64 62 Largest 3 | 2 2 2 . 2 2 2 3 3 3 3 3 Hottest 199 | 60 100 90 . 90 103 110 175 199 158 183 158 Shots Fired 1171 | 24 90 33 2 11 130 211 231 185 44 93 117 Gun 775 | 24 39 5 . . 47 207 153 128 8 64 100 Cannon 355 | . 39 19 2 11 83 3 68 55 36 29 10 Launcher 32 | . 3 9 . . . 1 10 2 . . 7 Special 9 | . 9 . . . . . . . . . . Kinetic 347 | 12 47 12 2 7 62 . . 43 21 41 100 Thermal 705 | . 40 12 . 4 66 209 175 122 15 52 10 Explosive 25 | . 3 9 . . . 1 10 2 . . . Electromagnetic 94 | 12 . . . . 2 1 46 18 8 . 7 Robot Hit Streak 31 | 6 9 11 . 5 14 22 31 30 11 18 18 Robot Miss Streak 7 | 2 3 5 1 2 5 3 3 3 1 7 4 Penetration Max 1 | . . . . . 1 . . . . 1 1 Secondary Targets 8 | . . . . . . 5 . 2 . . 1 Max Gunslinging Chain 1 | . . . . . . 1 . 1 . . 1 Shots Hit Robots 751 | 14 49 15 4 7 84 154 161 115 31 53 64 Core Hits 393 | 7 22 44 . 2 32 64 76 64 20 20 42 Critical Kills 7 | . . . . . 1 . 1 . . 3 2 Critical Parts Destroyed 7 | . 1 . . . 1 . . . . 2 3 Critical Strikes 41 | . 1 1 . . 3 9 9 4 1 7 6 Burn 19 | . . . . . . 9 8 2 . . . Meltdown 2 | . . . . . 1 . 1 . . . . Destroy 13 | . 1 . . . 1 . . . . 5 6 Blast 6 | . . 1 . . 1 . . 2 . 2 . Corrupt 1 | . . . . . . . . . 1 . . Melee Attacks 15 | . . 2 4 . 4 2 2 1 . . . Impact 7 | . . 2 . . . 2 2 1 . . . Slashing . | . . . . . . . . . . . . Piercing . | . . . . . . . . . . . . Sneak Attacks 4 | . . . 4 . . . . . . . . Combat Hostiles . | . . . . . . . . . . . . Follow-up Attacks . | . . . . . . . . . . . . Damage Inflicted 21320 | 206 988 1579 . 129 1713 3401 4495 3145 973 1537 3154 Guns 11021 | 163 292 25 . . 585 3033 2395 1861 71 894 1702 Cannons 5942 | . 438 222 . 129 1034 65 1271 982 902 643 256 Explosions 4349 | 43 258 1332 . . 94 295 829 302 . . 1196 Melee . | . . . . . . . . . . . . Ramming 8 | . . . . . . 8 . . . . . Kinetic 5104 | 27 378 107 . 76 625 . . 857 585 747 1702 Thermal 11186 | 43 352 140 . 53 1024 3098 2984 1828 317 790 557 Explosive 3016 | . 258 1332 . . . 295 829 302 . . . Electromagnetic 2006 | 136 . . . . 64 . 682 158 71 . 895 Impact . | . . . . . . . . . . . . Slashing . | . . . . . . . . . . . . Piercing . | . . . . . . . . . . . . Highest Corruption 9 | . . 2 2 2 . 5 3 3 3 9 1 Average Corruption 2 | . . 2 2 2 . 3 1 3 3 4 1 Corruption Purged 22 | . . . . . . . . . . 22 . Corruption Blocked . | . . . . . . . . . . . . Effects 163 | . . 9 8 10 . 64 18 28 10 16 . Message Errors 36 | . . 4 . 3 . 16 2 5 1 5 . Matter Fused 39 | . . . 4 2 . 12 5 8 3 5 . Heat Flow Errors 23 | . . . 1 1 . 14 . 5 1 1 . Energy Discharges 27 | . . 2 . 2 . 9 5 4 2 3 . Parts Fused 3 | . . . . . . 2 . 1 . . . Data Loss (minor) 18 | . . 3 1 1 . 7 . 3 3 . . Data Loss (major) 5 | . . . . . . . 4 . . 1 . Misfires 6 | . . . 2 . . 2 . 1 . 1 . Alerts 3 | . . . . 1 . 1 1 . . . . Weapon Failures 3 | . . . . . . 1 1 1 . . . Overload Shots 6 | . . . . . . . . 6 . . . Overflow Damage 298 | 8 4 29 . . 30 15 112 31 . 25 44 Projectiles 180 | . 4 17 . . 10 . 90 31 . 25 3 Explosions 118 | 8 . 12 . . 20 15 22 . . . 41 Melee . | . . . . . . . . . . . . Knockbacks 13 | . . 1 . . 3 . . 5 2 2 . Impact . | . . . . . . . . . . . . Kinetic 12 | . . 1 . . 3 . . 4 2 2 . Secondary 1 | . . . . . . . . 1 . . . Self-Inflicted Damage 386 | 35 . 118 . . 53 . 83 . . . 97 Shots 9 | 1 . 4 . . 1 . 2 . . . 1 Rammed 1 | . . . . . . 1 . . . . . Targets Rammed 1 | . . . . . . 1 . . . . . Kicked . | . . . . . . . . . . . . Crushed . | . . . . . . . . . . . . Highest Temperature 541 | 52 60 42 115 211 58 209 118 300 279 541 531 Average Temperature 94 | 29 18 9 66 109 24 72 35 103 115 184 152 Received Heat Transfer 2345 | . 186 209 . . 193 563 246 555 9 . 384 Effects 12 | . . . . . . . . . . 6 6 Shutdowns 3 | . . . . . . . . . . 2 1 Energy Bleed 1 | . . . . . . . . . . 1 . Interference 3 | . . . . . . . . . . 3 . Matter Decay 1 | . . . . . . . . . . . 1 Damage (major) 4 | . . . . . . . . . . . 4 Siege Activations . | . . . . . . . . . . . . Martial Activations . | . . . . . . . . . . . . Shielding Activations . | . . . . . . . . . . . . Robots Disrupted . | . . . . . . . . . . . . Combat Hostiles . | . . . . . . . . . . . . Robots Corrupted 1 | . . . . . . . . . . . 1 Combat Hostiles 1 | . . . . . . . . . . . 1 Parts Fried 14 | 2 . . . . . . 7 . . . 5 Impact Corruptions . | . . . . . . . . . . . . Robots Melted 6 | . . . . . 1 2 3 . . . . Combat Hostiles 5 | . . . . . . 2 3 . . . . Parts Melted 48 | . 1 . . . 3 17 21 6 . . . Heat Transferred 20007 | 50 740 296 . 111 1741 6364 5291 3562 481 1221 150 Parts Sabotaged 1 | . . . . . . . . . . . 1 Parts Stolen . | . . . . . . . . . . . . Parts Stripped . | . . . . . . . . . . . . Power Chain Reactions 3 | 1 . . . . 1 . . . . . 1 Alert | -11 -10 -10 -10 -9 -8 -7 -6 -6 -6 -6 -6 ------- Run | Yrd Mat Min Exi Min Mat Fac Fac Ext Cet Arc Hub Maximum Alert Level 3 | . 1 . . . . 1 1 . 1 1 3 Low Security (%) 87 | 100 94 100 . 100 100 76 95 100 90 97 35 Level 1 7 | . 5 . . . . 23 4 . 9 2 3 Level 2 1 | . . . . . . . . . . . 21 Level 3 3 | . . . . . . . . . . . 39 Level 4 . | . . . . . . . . . . . . Level 5 . | . . . . . . . . . . . . High Security . | . . . . . . . . . . . . Max Security . | . . . . . . . . . . . . Peak Influence 920 | 10 249 197 . 134 95 392 282 187 223 217 920 Initial 184 | . . 92 . . . 22 184 116 84 57 . Average 115 | 1 86 45 . 34 33 122 108 86 120 35 482 Influence Increases 6249 | 25 523 215 . 230 520 811 814 840 383 301 1587 Destroy 0b10 Robot/C 3360 | . 280 140 . 160 280 540 480 580 220 80 600 Destroy 0b10 Robot/NC 440 | 25 25 . . 15 45 70 75 50 10 45 80 Destroy Leader 732 | . 68 30 . 30 112 138 134 52 10 . 158 Allied During Kill 619 | . . . . 25 . . . 81 136 125 252 Successful Hack 141 | . 31 . . . 5 13 56 36 . . . Select Force Hacks 30 | . 30 . . . . . . . . . . Disable Machine 300 | . 45 . . . 60 . . 15 . 30 150 Anti-Garrison Action 150 | . . . . . . . . . . . 150 Destroy Structure 372 | . 29 45 . . 18 5 69 26 7 21 152 Lose Combat Pursuer 105 | . 15 . . . . 45 . . . . 45 Influence Decreases 5334 | 25 286 452 . 230 470 484 952 928 391 444 672 Entered New Map 642 | . . 145 . . . 28 193 123 67 86 . Time Decay 4054 | 25 276 267 . 210 460 446 640 576 294 338 522 Lost Part 429 | . . 40 . . 10 10 119 110 30 . 110 Lost Ally 179 | . 10 . . 20 . . . 89 . 20 40 Purge Threat 30 | . . . . . . . . 30 . . . Squads Dispatched 50 | . 3 1 . . 5 13 15 3 1 . 9 Investigation 11 | . 2 1 . . 3 2 1 1 1 . . Extermination 14 | . . . . . . 8 4 . . . 2 Reinforcement 17 | . 1 . . . 2 3 4 2 . . 5 Assault 2 | . . . . . . . . . . . 2 Garrison 6 | . . . . . . . 6 . . . . Intercept . | . . . . . . . . . . . . Searches Triggered . | . . . . . . . . . . . . Construction Impeded 3 | . . . . . . . . 2 . . 1 Haulers Reinforced 3 | . . . . . . 2 1 . . . . Active Scanning Responses . | . . . . . . . . . . . . Cargo Convoy Interrupts . | . . . . . . . . . . . . Stealth | -11 -10 -10 -10 -9 -8 -7 -6 -6 -6 -6 -6 --------- Run | Yrd Mat Min Exi Min Mat Fac Fac Ext Cet Arc Hub Distress Signals 17 | . 2 . . . 1 . 7 2 2 . 3 Communications Jammed . | . . . . . . . . . . . . Distress Signals . | . . . . . . . . . . . . Times Spotted 272 | . 27 27 . 2 19 37 39 31 11 33 46 Peak Tracking Total 20 | . 4 20 . 2 3 4 5 6 5 1 5 Tactical Retreats 7 | . 1 . . . . 3 . . . . 3 Traps | -11 -10 -10 -10 -9 -8 -7 -6 -6 -6 -6 -6 ------- Run | Yrd Mat Min Exi Min Mat Fac Fac Ext Cet Arc Hub Traps Triggered 10 | . . . . . 3 6 1 . . . . Indirectly . | . . . . . . . . . . . . Trap Hack Attempts . | . . . . . . . . . . . . Triggered . | . . . . . . . . . . . . Disarmed . | . . . . . . . . . . . . Reprogrammed . | . . . . . . . . . . . . Reused . | . . . . . . . . . . . . Traps Extracted . | . . . . . . . . . . . . Installed . | . . . . . . . . . . . . Triggered . | . . . . . . . . . . . . Machines | -11 -10 -10 -10 -9 -8 -7 -6 -6 -6 -6 -6 ---------- Run | Yrd Mat Min Exi Min Mat Fac Fac Ext Cet Arc Hub Machines Disabled 22 | . 3 . . . 4 . . 2 . 2 11 Max in Single Turn 3 | . 1 . . . 1 . . 1 . 1 3 Garrison Access 1 | . . . . . . . . . . . 1 Network Hub 1 | . . . . . . . . . . . 1 Energy Cycler 3 | . . . . . . . . 3 . . . Machines Repaired . | . . . . . . . . . . . . Machines Dismantled . | . . . . . . . . . . . . Machines Sabotaged . | . . . . . . . . . . . . Overloaded Fab Kills . | . . . . . . . . . . . . Hacking | -11 -10 -10 -10 -9 -8 -7 -6 -6 -6 -6 -6 --------- Run | Yrd Mat Min Exi Min Mat Fac Fac Ext Cet Arc Hub Machines Accessed 46 | . 7 1 2 1 8 8 8 7 3 1 . Terminals 27 | . 6 . . . 5 4 3 6 3 . . Fabricators 2 | . . . . . . 1 1 . . . . Repair Stations 3 | . . . . . 1 2 . . . . . Recycling Units 3 | . 1 . . . 1 . . 1 . . . Scanalyzers 4 | . . . . . 1 1 2 . . . . Garrison Access 2 | . . . . . . . 2 . . . . Total Hacks 134 | . 19 1 2 1 24 18 19 17 8 25 . Successful 75 | . 8 1 2 1 13 9 7 8 1 25 . Failed 57 | . 11 . . . 10 9 11 9 7 . . Catastrophic 15 | . . . . . 1 1 5 3 5 . . Database Lockouts 2 | . . . . . 1 . 1 . . . . Manual 27 | . 12 . 1 . 9 . 1 3 1 . . Terminals 67 | . 18 . . . 14 6 5 16 8 . . Fabricators 3 | . . . . . . 1 2 . . . . Repair Stations 8 | . . . . . 3 5 . . . . . Recycling Units 3 | . 1 . . . 1 . . 1 . . . Scanalyzers 17 | . . . . . 6 6 5 . . . . Garrison Access 7 | . . . . . . . 7 . . . . Terminal Hacks 48 | . 1 1 2 1 3 3 4 7 1 25 . Record 30 | . . . 1 . . 1 1 1 1 25 . Part Schematic 2 | . . . . . . . . 2 . . . Robot Analysis 1 | . . . . . . . 1 . . . . Prototype ID Bank 1 | . . . . . 1 . . . . . . Open Door 4 | . . 1 . 1 . . 1 1 . . . Open DSF 1 | . . . . . . 1 . . . . . Terminal Index 3 | . 1 . . . 1 . . 1 . . . Alert Level 1 | . . . . . . . 1 . . . . Unreport Threat 1 | . . . . . . . . 1 . . . Locate Traps 1 | . . . . . . . . 1 . . . Recall Investigation 1 | . . . . . 1 . . . . . . Hauler Manifests 1 | . . . . . . 1 . . . . . Proto ID Catalog 1 | . . . 1 . . . . . . . . Fabricator Hacks 1 | . . . . . . 1 . . . . . Network Status 1 | . . . . . . 1 . . . . . Repair Station Hacks 3 | . . . . . 2 1 . . . . . Scan Component 2 | . . . . . 1 1 . . . . . Repair 1 | . . . . . 1 . . . . . . Recycling Unit Hacks 2 | . . . . . 1 . . 1 . . . Report Inventory 1 | . . . . . 1 . . . . . . Retrieve Components 1 | . . . . . . . . 1 . . . Scanalyzer 11 | . . . . . 4 4 3 . . . . Insert Component 1 | . . . . . . 1 . . . . . Analyze 2 | . . . . . . 2 . . . . . Retrieve Study 8 | . . . . . 4 1 3 . . . . Garrison Access Hacks . | . . . . . . . . . . . . Unauthorized Hacks 10 | . 7 . . . 3 . . . . . . Terminals 9 | . 6 . . . 3 . . . . . . Assimilate 4 | . 4 . . . . . . . . . . Botnet 3 | . 1 . . . 2 . . . . . . Operators 2 | . 1 . . . 1 . . . . . . Fabricators . | . . . . . . . . . . . . Repair Stations . | . . . . . . . . . . . . Recycling Units 1 | . 1 . . . . . . . . . . Tunnel 1 | . 1 . . . . . . . . . . Scanalyzers . | . . . . . . . . . . . . Garrison Access . | . . . . . . . . . . . . Data Cores Recovered 1 | . . . . . . . . . . . 1 Used . | . . . . . . . . . . . . Hacking Detections 28 | . 5 . . . 4 6 5 5 3 . . Full Trace Events 7 | . 2 . . . 2 . 1 1 1 . . Feedback Events 1 | . . . . . . . 1 . . . . Corruption 1 | . . . . . . . 1 . . . . Feedback Blocked . | . . . . . . . . . . . . Robot Schematics Acquired . | . . . . . . . . . . . . Robots Built . | . . . . . . . . . . . . Authchips . | . . . . . . . . . . . . Time . | . . . . . . . . . . . . Total Robot Build Rating . | . . . . . . . . . . . . Part Schematics Acquired 3 | . . . . . . 1 . 2 . . . Parts Built . | . . . . . . . . . . . . Authchips . | . . . . . . . . . . . . Time . | . . . . . . . . . . . . Total Part Build Rating . | . . . . . . . . . . . . Part Studies Acquired 8 | . . . . . 4 1 3 . . . . Parts Repaired 1 | . . . . . 1 . . . . . . Time 44 | . . . . . 44 . . . . . . Parts Recycled . | . . . . . . . . . . . . Recycled Matter . | . . . . . . . . . . . . Retrieved Matter . | . . . . . . . . . . . . Retrieved Components 10 | . . . . . . . . 10 . . . Parts Scanalyzed 1 | . . . . . . 1 . . . . . Part Schematics Acquired 1 | . . . . . . 1 . . . . . Parts Damaged . | . . . . . . . . . . . . Bothacking | -11 -10 -10 -10 -9 -8 -7 -6 -6 -6 -6 -6 ------------ Run | Yrd Mat Min Exi Min Mat Fac Fac Ext Cet Arc Hub Used RIF Installer . | . . . . . . . . . . . . Robots Hacked 4 | . . . 4 . . . . . . . . Non-combat 3 | . . . 3 . . . . . . . . Combat 1 | . . . 1 . . . . . . . . Robot Hacks Applied 4 | . . . 4 . . . . . . . . parse_system 4 | . . . 4 . . . . . . . . Relay Couplers Released 5 | . . . . . . 4 . . . . 1 Machine Destruction 1 | . . . . . . . . . . . 1 Programmers 4 | . . . . . . 4 . . . . . Fabnet Peak Effective % . | . . . . . . . . . . . . Robots Rewired 9 | . . . . . . . . 9 . . . Allies Hacked . | . . . . . . . . . . . . Hacks Repelled . | . . . . . . . . . . . . Allies | -11 -10 -10 -10 -9 -8 -7 -6 -6 -6 -6 -6 -------- Run | Yrd Mat Min Exi Min Mat Fac Fac Ext Cet Arc Hub Total Allies 19 | . 1 3 . . . . . 10 5 . . Largest Group 6 | . 1 3 3 3 2 . . 6 6 6 4 Highest-Rated Group 639 | . 10 40 40 40 24 . . 191 639 639 384 Highest-Rated Ally 159 | . 10 16 16 16 16 . . 159 159 159 96 Total Orders 3 | . . . . . 2 . . 1 . . . FOLLOW 1 | . . . . . . . . 1 . . . EXPLORE 2 | . . . . . 2 . . . . . . Ally Attacks 246 | . . . . 37 6 . . 80 44 19 60 Total Damage 6856 | . . . . 346 56 . . 1332 1465 773 2884 Kills 54 | . . . . 9 . . . 8 9 4 24 Allies Corrupted . | . . . . . . . . . . . . Allies Melted . | . . . . . . . . . . . . Intel | -11 -10 -10 -10 -9 -8 -7 -6 -6 -6 -6 -6 ------- Run | Yrd Mat Min Exi Min Mat Fac Fac Ext Cet Arc Hub Active Infowar (turns) 2198 | 6 448 . . . 690 . . 2 . . 1052 IFF 1052 | . . . . . . . . . . . 1052 Seismic 1144 | 6 448 . . . 690 . . . . . . Triangulation 2 | . . . . . . . . 2 . . . Robot Analysis Total 1 | . . . . . . . 1 . . . . Derelict Logs Recovered 3 | . . 1 . 2 . . . . . . . Drone Launches 3 | . . . . . 3 . . . . . . Drone Recoveries 2 | . . . . . 2 . . . . . . Exploration | -11 -10 -10 -10 -9 -8 -7 -6 -6 -6 -6 -6 ------------- Run | Yrd Mat Min Exi Min Mat Fac Fac Ext Cet Arc Hub Turns Passed 17628 | 87 838 1096 582 845 2145 4126 2280 1822 652 1703 1452 Spaces Moved 8065 | 21 557 678 358 517 1046 1492 825 1042 431 556 542 Core 1 | . . . . . . . . . . . 1 Treads 3711 | . . 352 358 287 253 1492 825 . . 144 . Legs . | . . . . . . . . . . . . Wheels 4353 | 21 557 326 . 230 793 . . 1042 431 412 541 Hover . | . . . . . . . . . . . . Flight . | . . . . . . . . . . . . Fastest Speed 100 | 100 100 115 160 115 130 163 217 105 105 120 150 Average Speed 170 | 100 108 141 160 139 143 231 232 115 119 193 215 Slowest Speed 2150 | 100 115 240 160 160 245 330 285 150 120 240 2150 Overloaded Moves . | . . . . . . . . . . . . Propulsion Burnouts . | . . . . . . . . . . . . Robots Hopped . | . . . . . . . . . . . . Potential Cave-ins . | . . . . . . . . . . . . Cave-ins Triggered . | . . . . . . . . . . . . Exploration Rate (%) 67 | 2 80 99 70 96 75 44 25 93 78 97 50 Regions Visited 11 Branch Regions 7 Pre-discovered Areas 2 | . 1 . 1 . . . . . . . . Known Exits Taken . | . . . . . . . . . . . . Unknown Exits Taken 11 | 1 1 1 1 1 1 1 1 1 1 1 . Scrap Searched 6 | . . 2 . 4 . . . . . . . Spaces Dug 45 | . 7 8 . . 9 1 4 . . . 16 Terrain Destroyed 452 | . 26 77 . . 21 4 78 19 3 20 204 Melee 5 | . . 2 . . . 1 2 . . . . Projectile 98 | . 7 . . . 18 . 8 8 3 20 34 AOE 349 | . 19 75 . . 3 3 68 11 . . 170 Terrain Rammed . | . . . . . . . . . . . . Walls Destroyed . | . . . . . . . . . . . . Machines Disabled . | . . . . . . . . . . . . Actions | -11 -10 -10 -10 -9 -8 -7 -6 -6 -6 -6 -6 --------- Run | Yrd Mat Min Exi Min Mat Fac Fac Ext Cet Arc Hub Total 10938 | 67 682 781 367 628 1568 1949 1002 1514 539 1113 728 Wait 1586 | 20 31 55 . 88 318 253 14 224 56 421 106 Move 8054 | 20 556 677 357 516 1045 1491 824 1041 430 555 542 Hop . | . . . . . . . . . . . . Pick Up 163 | 6 9 8 2 7 27 20 14 33 12 18 7 Fast Attach 44 | . 2 . . 1 9 10 6 4 2 8 2 Attach 86 | 3 1 4 . . 10 4 14 24 5 17 4 Detach 11 | . . . . . 2 . 1 . 2 6 . Swap 100 | 1 20 8 2 3 14 19 14 12 3 4 . Drop 158 | 5 12 6 1 6 32 30 13 16 12 20 5 Fire 570 | 12 51 21 . 7 66 115 88 67 17 64 62 Melee 15 | . . 2 4 . 4 2 2 1 . . . Ram . | . . . . . . . . . . . . Kick . | . . . . . . . . . . . . Crush 1 | . . . . . . 1 . . . . . Escape Stasis 4 | . . . . . . 4 . . . . . Rewire 146 | . . . 1 . 41 . 12 92 . . . Trap . | . . . . . . . . . . . . Miscellaneous . | . . . . . . . . . . . . Route ------- -11/Scrapyard -10/Materials (discovered 4 exits: [*Mat x3] / *Min) -10/Mines (discovered 4 exits: [*Mat x2] / *Exi / [*Sub]) -10/Exiles -9/Mines (discovered 2 exits: *Mat x2) -8/Materials (discovered 2 exits: *Fac x2) -7/Factory (discovered 2 exits: *Fac x2) -6/Factory (discovered 2 exits: [*Fac] / *Ext) -6/Extension (discovered 2 exits: [*Fac] / *Cet) -6/Cetus (discovered 3 exits: [*Fac x2] / *Arc) -6/Archives (discovered 3 exits: [*Fac] / [*Hub x2]) -6/Hub_04(d) (discovered 3 exits: [*Fac x3]) History --------- Turn | Location | Event 17 | -11/Scrapyard | Discovered new exit (range 2) 88 | -11/Scrapyard | Entered Materials 193 | -10/Materials | Discovered new exit (range 16) 319 | -10/Materials | Build established: Mutant 400 | -10/Materials | Discovered new exit (range 16) 427 | -10/Materials | Discovered new exit (range 16) 479 | -10/Materials | Discovered new exit (range 8) 588 | -10/Materials | Derelicts attacked the area 926 | -10/Materials | Entered Mines 965 | -10/Mines | Met a Derelict bent on vengeance 1005 | -10/Mines | A weapon hastily lodged in a ceiling crevice suddenly fell to the ground 1041 | -10/Mines | Discovered new exit (range 11) 1077 | -10/Mines | Discovered new exit (range 15) 1216 | -10/Mines | Discovered new exit (range 10) 1225 | -10/Mines | Received a Rocket Launcher from a helpful Derelict 1249 | -10/Mines | Met a Derelict shopkeep closing up shop 1313 | -10/Mines | Assembled infested the area 1336 | -10/Mines | Learned Materials terminal intel 1364 | -10/Mines | Core integrity fell below 50% 1398 | -10/Mines | Destroyed 20 combat bots 1400 | -10/Mines | Lost 3 parts (1n2w) 1512 | -10/Mines | Assisted by bots powering up and referring to "LRC-V3" 2006 | -10/Mines | Deemed a non-threat by the Exiles lab entrance 2008 | -10/Mines | Discovered new exit (range 5) 2022 | -10/Mines | Entered Exiles 2022 | -10/Exiles | Accompanied by 3 allies 2062 | -10/Exiles | Met 8R-AWN 2094 | -10/Exiles | Met EX-HEX 2191 | -10/Exiles | Met EX-DEC 2235 | -10/Exiles | Learned location of Zion (-6) 2265 | -10/Exiles | Met EX-BIN 2369 | -10/Exiles | Aligned with FarCom system 2370 | -10/Exiles | Given EX-Vault access code 2410 | -10/Exiles | Opened EX-Vault 2418 | -10/Exiles | Found Superbattery 2450 | -10/Exiles | Warned to stay clear of 0b10 Research branches 2585 | -10/Exiles | Discovered new exit (range 14) 2604 | -10/Exiles | Left Exiles lab with Superbattery 2604 | -10/Exiles | Entered Mines 2604 | -9/Mines | Accompanied by 3 allies 2968 | -9/Mines | Learned 2 Materials zone layouts 3183 | -9/Mines | Discovered new exit (range 14) 3260 | -9/Mines | Discovered new exit (range 10) 3290 | -9/Mines | Found the Drone Emporium 3301 | -9/Mines | Found Prototype Device 3449 | -9/Mines | Entered Materials 3449 | -8/Materials | Accompanied by 2 allies 3449 | -8/Materials | Evolved 4 slots: Propulsion x1, Utility x3 3450 | -8/Materials | Identified Sensor Drone Bay 3451 | -8/Materials | Loaded intel: 12 terminal locations 3736 | -8/Materials | Build established: Scavenger-Mutant 3908 | -8/Materials | Met 7R-MNS 3989 | -8/Materials | Repaired Gauss Rifle 4046 | -8/Materials | Discovered new exit (range 15) 4400 | -8/Materials | Central database locked down 5178 | -8/Materials | Discovered new exit (range 15) 5594 | -8/Materials | Entered Factory 5594 | -7/Factory | Evolved 2 slots: Propulsion x1, Utility x1 5595 | -7/Factory | Caught up to 7R-MNS 6004 | -7/Factory | Discovered new exit (range 12) 8236 | -7/Factory | Build established: Mutant 9563 | -7/Factory | Discovered new exit (range 13) 9720 | -7/Factory | Entered another Factory area 9720 | -6/Factory | Evolved 2 slots: Power x1, Weapon x1 9721 | -6/Factory | Caught up to 7R-MNS 9976 | -6/Factory | Garrison activated, responded to threat 10005 | -6/Factory | Build established: Skirmisher 10086 | -6/Factory | Garrison activated, responded to threat 10556 | -6/Factory | Build established: Scavenger-Tank 11018 | -6/Factory | Garrison activated, responded to threat 11101 | -6/Factory | Lost 5 parts (2n3u) 11210 | -6/Factory | Central database locked down 11465 | -6/Factory | Build established: Gunner 11518 | -6/Factory | Discovered new exit (range 12) 11948 | -6/Factory | Garrison activated, responded to threat 11982 | -6/Factory | Discovered new exit (range 9) 12000 | -6/Factory | Entered Extension 12019 | -6/Extension | Lost 4 parts (1n3u) 12585 | -6/Extension | Build established: Commander-Skirmisher 12842 | -6/Extension | Spotted B-75 Beast 12863 | -6/Extension | Destroyed B-75 Beast 12877 | -6/Extension | Spotted B-75 Beast 12900 | -6/Extension | Core integrity fell below 50% 12904 | -6/Extension | Destroyed B-75 Beast 12930 | -6/Extension | Lost 5 allies 12933 | -6/Extension | Lost 6 parts (1p2n1u2w) 13127 | -6/Extension | Discovered new exit (range 16) 13128 | -6/Extension | Discovered new exit (range 15) 13265 | -6/Extension | Lost 3 parts (1p2w) 13315 | -6/Extension | Build established: Scavenger-Gunner 13341 | -6/Extension | Energy Cycler disabled 13342 | -6/Extension | Rescued a captive Derelict 13344 | -6/Extension | Rescued a captive Derelict 13349 | -6/Extension | Rescued a captive Derelict 13627 | -6/Extension | Rescued A7 13822 | -6/Extension | Entered Cetus 13822 | -6/Cetus | Accompanied by 1 ally (A7) 13827 | -6/Cetus | Acquired a Cetus Manufacturing Module code from A7 13841 | -6/Cetus | Spotted Cetus Guard 13842 | -6/Cetus | Spotted Cetus Guard 13847 | -6/Cetus | Spotted Cetus Guard 13847 | -6/Cetus | Allies destroyed Cetus Guard 13855 | -6/Cetus | Destroyed Cetus Guard 13863 | -6/Cetus | Allies destroyed Cetus Guard 13923 | -6/Cetus | Discovered new exit (range 16) 14054 | -6/Cetus | Started Cetus Manufacturing Module 14079 | -6/Cetus | Manufactured an Enhanced Grunt 14104 | -6/Cetus | Manufactured an Enhanced Grunt 14129 | -6/Cetus | Manufactured an Enhanced Grunt 14154 | -6/Cetus | Manufactured an Enhanced Grunt 14179 | -6/Cetus | Manufactured an Enhanced Grunt 14208 | -6/Cetus | Discovered new exit (range 16) 14235 | -6/Cetus | Spotted Cetus Guard 14236 | -6/Cetus | Spotted Cetus Guard 14241 | -6/Cetus | Spotted Cetus Guard 14242 | -6/Cetus | Allies destroyed Cetus Guard 14242 | -6/Cetus | Spotted Cetus Guard 14249 | -6/Cetus | Allies destroyed Cetus Guard 14256 | -6/Cetus | Allies destroyed Cetus Guard 14262 | -6/Cetus | Allies destroyed Cetus Guard 14263 | -6/Cetus | Core integrity fell below 20% 14269 | -6/Cetus | Discovered new exit (range 15) 14282 | -6/Cetus | Met Revision 17 14474 | -6/Cetus | Entered Archives 14474 | -6/Archives | Accompanied by 6 allies (A7) 14842 | -6/Archives | Discovered new exit (range 15) 15035 | -6/Archives | Build established: Scavenger-Skirmisher 15155 | -6/Archives | Unable to access archive contents 15169 | -6/Archives | Discovered new exit (range 16) 15184 | -6/Archives | Unable to access archive contents 15186 | -6/Archives | Discovered new exit (range 16) 15489 | -6/Archives | Unable to access archive contents 15551 | -6/Archives | Build established: Scavenger-Tank 16177 | -6/Archives | Entered Hub_04(d) 16177 | -6/Hub_04(d) | Accompanied by 4 allies 16220 | -6/Hub_04(d) | Found Prototype Device 16221 | -6/Hub_04(d) | Identified Exp. Thermal Shield 16589 | -6/Hub_04(d) | Discovered new exit (range 5) 16770 | -6/Hub_04(d) | Spotted B-75 Beast 16789 | -6/Hub_04(d) | Allies destroyed B-75 Beast 16955 | -6/Hub_04(d) | Discovered new exit (range 15) 16972 | -6/Hub_04(d) | Lost 3 parts (1n1u1w) 17228 | -6/Hub_04(d) | Build established: Scavenger-Skirmisher 17470 | -6/Hub_04(d) | Discovered new exit (range 6) 17621 | -6/Hub_04(d) | Network Hub disabled 17625 | -6/Hub_04(d) | Spotted Lightning 17626 | -6/Hub_04(d) | Spotted Lightning 17626 | -6/Hub_04(d) | Spotted Lightning 17629 | -6/Hub_04(d) | Destroyed by Y-54 Guardian with Gatling Laser Last Messages --------------- 17600_ Acquired 1 matter. 17619_ K-01 Serf cleans the Terminal. 17621_ Slug penetrates Door. 17621_ ALERT: Network intrusion management efficiency reduced by 20%. Dispatching hub defense squads. All non-combat units evacuate. 17621_ Network Hub explodes. 17621_ Destroyed Wheel. 17621_ K-01 Serf destroyed. 17621_ Centrium Heavy Treads destroyed. 17621_ Destroyed Centrium Heavy Treads. 17621_ Com. Wheel+ destroyed. 17621_ Destroyed Com. Wheel+. 17621_ Door malfunctions. 17621_ Destroyed Lgt. Ion Engine. 17621_ Destroyed Wheel. 17621_ K-01 Serf destroyed. 17627_ Imp. Cooling System destroyed. 17627_ Adv. KE Penetrator destroyed. 17627_ EMDS Slug penetrates Wall. Map ----- +----------------------------------------------------+ | ?????????????????????????????????????????????????? | | ?????????????????????????????????????????????????? | | ?????????????????????????????????????????????????? | | ?????????????????????????????????????????????##### | | ?????????????????????????????????????????????# | | ?????????????????????????????????????????????# | | ?????????????????????????????????????????????# | | ?????????????????????????????????????????????# | | ?????????????????????????????????????????????# | | ?????????????????????????????????????????????# | | ??????????????????#############??????????????# | | ??????????????????# #??????????????# | | ??????????????????# #######???###??#! | | ??????????????????# """" # ############## | | ??????????????????# """" # % ! !% | | ??????????????????# """" !!! / %! != * | | ???????????????#### """" !! g# % =! = | | ???????????????# # !! # ########## # | | ???????????????#### """" ## ## ########= # | | ??????????????????# """" ## # ] #%[ # | | ?????############?# " " ## # T # # | | ?????# * #?# ##g #!!! " # # | | ?????# #?# ## #!! " + + | | ??????? ; # ##=g #!! " # # | | ???????? " ;;;;;;;;;;;;;;;;%* ; # # | | ????????"" ;* @ k h ; # # | | ????????"" %[*k %! h ;;######### # | | ?????? "" ;;;;;;;;; ;;;##ih ########### # | | ?????? "" ; ###### #### # # # | | ?????# " ;???????# #??# + " # # | | ?????# Y #???????# ??# < " " # # | | ?????# #???????# k""?# # %= " # # | | ?????############???????# #### #!=/! + # | | ????????????????????????# #??#######* !! " # # | | ????????????????????????# #????????# " # # | | ????????????????????????# #????????# " # # | | ????????????????????????#w #????????# = += # | | ????????????????????????# #????????###########+## | | ????????????????????????#R #????????# ? ## [ | | ????????????????????????? ?????????# ? "# " " " | | ????????????????????????? ?????????# ? "# " " " | | ????????????????????????? ?????????# " "# " " " | | ????????????????????????????????????# T# | | ????????????????????????????????????# " "# | | ????????????????????????????????????# " "# ""T"" | | ????????????????????????????????????# " "# """"" | | ????????????????????????????????????# ## | | ????????????????????????????????????# ########+ | | ????????????????????????????????????? ## """" | | ???????????????????????????#### #######+### """" | +----------------------------------------------------+ Best States ------------- Heat Dissipation 102 Energy Generation 45 Energy Capacity 1500 Matter Stores 339 Matter Capacity 550 Sight Range 16 Terrain Scan Density 10 Power Amplification 20 EM Shielding 2 Armor Coverage 600 Resistance: KI 20 Resistance: TH 30 Propulsion Shielding 33 Evasion (%) 40 Targeting Accuracy 8 Armor Integrity Analysis 30 Recoil Reduction 4 Energy Filtering 30 Particle Charging 20 Offensive Hacking 12 Defensive Hacking 10 Item Schematics ----------------- Machine Analyzer | -7/Factory | Scanalyzed Lgt. Antimatter Reactor | -6/Extension | Hacked Neutrino Core | -6/Extension | Hacked Robot Schematics ------------------ None Fabricated ------------ Nothing Repaired ---------- Gauss Rifle | 65% | -8/Materials Studied --------- Com. Wheel | -8/Materials | Hacked Nuclear Core | -8/Materials | Hacked Hpw. Shotgun | -8/Materials | Hacked Hvy. Particle Cannon | -8/Materials | Hacked Lgt. Treads | -7/Factory | Hacked Arm. Huge Wheel | -6/Factory | Hacked Arm. Treads | -6/Factory | Hacked Magnetic Acceleration Cannon | -6/Factory | Hacked Alien Tech Used ----------------- None Achievements -------------- A Problem For Future Me Construction Begets Destruction Ew, Corruption Explosive Keycard Killing Spree Prison Break Project G-00 Challenges ------------ None Game ------ Seed ProtonMyomerMantle Manual? 0 Play Time 03:17:55 Cumulative 78.0 hours Start 2026.04.10 @ 18:51:17 End 2026.04.10 @ 22:54:19 Sessions 5 Manual Loads 0 Difficulty Rogue Special Mode None Game No. 72 Rogue 62 Adventurer 9 Explorer 1 Win Type - Total 0 Types 0/0/0/0/0/0/0/0/0/0 Lore% 39 Gallery% 36 Achievement% 29 Wizard Run 0 Options --------- Layout 2 ASCII 0 Keyboard 0 Movement Mouse Keybinds 0 Fullscreen 1 Font 48/Terminus Map View 50x44 Zoom Use 0% Tactical HUD 1 Map Filters NONE Filters NONE Steam 1 RUN: 4207168b-f05f-4347-98f8-3439a47fa0d4